bitfinex/quotes_BTCUSD_20250223
["timestamp","ask_amount","ask_price","bid_price","bid_amount"]
[1740325682564,0.53661582,95612.0,95611.0,0.01]
[1740325682772,0.18454085,95609.0,95608.0,3.9e-07]
[1740325682972,0.28718654,95609.0,95608.0,3.9e-07]
[1740325683190,0.31943999,95609.0,95608.0,3.9e-07]
[1740325683398,0.125553,95577.0,95576.0,1e-06]
[1740325683602,0.02,95599.0,95576.0,1e-06]
[1740325683603,0.10690949,95589.0,95576.0,1e-06]
[1740325683809,0.10690949,95589.0,95579.0,0.08803279]
[1740325684013,0.10264569,95582.0,95576.0,1e-06]
[1740325684658,0.00783919,95581.0,95576.0,0.125555]
[1740325684938,0.10264569,95580.0,95578.0,0.125551]
[1740325685097,0.10264569,95580.0,95576.0,1e-06]
[1740325685295,0.10264569,95580.0,95578.0,0.125551]
[1740325686149,0.10364569,95580.0,95578.0,0.125551]
[1740325686318,0.10764569,95580.0,95578.0,0.125551]
[1740325686521,0.004,95580.0,95578.0,0.12680636]
[1740325686701,0.004,95580.0,95578.0,0.125551]
[1740325686901,0.004,95580.0,95579.0,0.13055513]
[1740325687326,0.10690949,95603.0,95602.0,0.12552]
[1740325687529,0.20955518,95603.0,95602.0,0.12552]
[1740325687728,0.16729,95642.0,95599.0,0.33595334]
[1740325687729,0.10690949,95627.0,95601.0,0.00125506]
[1740325687977,0.10264569,95626.0,95625.0,0.125489]
[1740325688180,0.20955518,95626.0,95625.0,0.125489]
[1740325688737,0.10919104,95626.0,95625.0,0.12872785]
[1740325688935,0.00654535,95626.0,95625.0,0.12872785]
[1740325689158,0.00654535,95626.0,95625.0,0.12880456]
[1740325689893,0.09388323,95627.0,95626.0,0.125488]
[1740325690220,0.09388323,95627.0,95626.0,0.12871377]
[1740325691836,0.09488323,95627.0,95626.0,0.12871377]
[1740325692047,0.09488323,95627.0,95626.0,0.01022577]
[1740325692048,0.19852892,95627.0,95626.0,0.01022577]
[1740325692380,0.19852892,95627.0,95626.0,0.007]
[1740325693031,0.19752892,95627.0,95625.0,7.671e-05]
[1740325693229,0.10264569,95626.0,95625.0,7.671e-05]
[1740325694926,0.10364569,95626.0,95625.0,7.671e-05]
[1740325695334,0.10364569,95626.0,95625.0,0.12556671]
[1740325695754,0.10364569,95626.0,95625.0,0.12756671]
[1740325696328,0.001,95626.0,95625.0,0.12756671]
[1740325698227,0.001,95626.0,95625.0,0.1288213]
[1740325698793,0.001,95626.0,95625.0,0.1268213]
[1740325699140,0.002,95626.0,95625.0,0.1298213]
[1740325700223,0.001,95626.0,95625.0,0.1298213]
[1740325700536,0.002,95626.0,95625.0,0.1328213]
[1740325700944,0.002,95626.0,95625.0,0.13156671]
[1740325703136,0.002,95626.0,95625.0,0.1328212]
[1740325703575,0.002,95626.0,95625.0,0.13156671]
[1740325704655,0.002,95626.0,95625.0,0.13282112]
[1740325706417,0.001,95626.0,95625.0,0.12982112]
[1740325706622,0.001,95626.0,95625.0,0.28297191]
[1740325706827,0.0017018,95649.0,95625.0,0.1532275]
[1740325707090,0.10264569,95648.0,95647.0,0.125461]
[1740325707633,0.10264569,95648.0,95647.0,0.12860786]
[1740325708219,0.10364569,95648.0,95647.0,0.13160786]
[1740325709320,0.10364569,95648.0,95647.0,0.13660786]
[1740325710831,0.10534789,95648.0,95647.0,0.13660786]
[1740325713088,0.0027022,95648.0,95647.0,0.13786231]
[1740325713309,0.0027022,95648.0,95647.0,0.13786213]
[1740325715226,0.0027022,95648.0,95647.0,0.15852181]
[1740325716616,0.0027022,95648.0,95647.0,0.16882825]
[1740325716825,0.0027022,95648.0,95647.0,0.31882825]
[1740325717026,2e-07,95648.0,95647.0,0.31757398]
[1740325717225,1e-06,95649.0,95648.0,0.27546]
[1740325717440,1e-06,95649.0,95648.0,0.37010085]
[1740325717634,1e-06,95649.0,95648.0,0.37331991]
[1740325717881,1e-06,95649.0,95648.0,0.35877906]
[1740325718315,1e-06,95649.0,95648.0,0.4959656]
[1740325718859,1e-06,95649.0,95648.0,0.5229656]
[1740325719070,0.0017006,95671.0,95670.0,0.125431]
[1740325719274,0.0017006,95671.0,95670.0,0.27668477]
[1740325719480,0.0017006,95671.0,95670.0,0.27863131]
[1740325720103,0.0017006,95671.0,95670.0,0.27963131]
[1740325720305,0.0017006,95671.0,95670.0,0.27970802]
[1740325720529,0.0017006,95671.0,95670.0,0.27870802]
[1740325720725,0.0017006,95671.0,95670.0,0.28370802]
[1740325721330,0.0017006,95671.0,95670.0,0.28770802]
[1740325721703,0.0017006,95671.0,95670.0,0.28370802]
[1740325721901,0.0017006,95671.0,95670.0,0.13370802]
[1740325722190,0.0017006,95671.0,95670.0,0.14070802]
[1740325722593,0.0017006,95671.0,95670.0,0.13570802]
[1740325722794,0.0017006,95671.0,95670.0,0.14270802]
[1740325724356,0.0017006,95671.0,95670.0,0.16363569]
[1740325725365,0.10434629,95671.0,95670.0,0.03820469]
[1740325726342,0.10434629,95671.0,95670.0,0.03120469]
[1740325726548,0.22977529,95671.0,95670.0,0.03320469]
[1740325726747,0.22977529,95671.0,95670.0,0.03120469]
[1740325726924,0.33668478,95671.0,95670.0,0.02800438]
[1740325727132,0.33668478,95671.0,95670.0,0.03300438]
[1740325727335,0.33668478,95671.0,95670.0,0.02100438]
[1740325727493,0.21125578,95671.0,95670.0,0.02200438]
[1740325727696,0.21125578,95671.0,95670.0,0.02400438]
[1740325727893,0.34322659,95671.0,95670.0,0.02200438]
[1740325728117,0.34322659,95671.0,95670.0,0.02517107]
[1740325728321,0.21779759,95671.0,95670.0,0.02600438]
[1740325728525,0.21779759,95671.0,95670.0,0.02817107]
[1740325728725,0.21779759,95671.0,95670.0,0.02500438]
[1740325728927,0.21779759,95671.0,95670.0,0.03017107]
[1740325729127,0.34322659,95671.0,95670.0,0.03017107]
[1740325729590,0.34322659,95671.0,95670.0,0.02617107]
[1740325729766,0.34322659,95671.0,95670.0,0.03117107]
[1740325730208,0.21779759,95671.0,95670.0,0.03117107]
[1740325731239,0.21779759,95671.0,95670.0,0.02917107]
[1740325731566,0.21779759,95671.0,95670.0,0.03217107]
[1740325732317,0.21125578,95671.0,95670.0,0.03217107]
[1740325732524,0.61388478,95671.0,95670.0,0.03217107]
[1740325732727,0.62842563,95671.0,95670.0,0.0112434]
[1740325733031,0.62842563,95671.0,95670.0,0.00807671]
[1740325733854,0.66741507,95671.0,95670.0,7.1e-07]
[1740325734296,0.68741507,95671.0,95670.0,7.1e-07]
[1740325734899,0.79006076,95671.0,95670.0,7.1e-07]
[1740325735100,0.0793,95643.0,95610.0,0.21741105]
[1740325735303,0.167292,95641.0,95620.0,0.13466015]
[1740325735513,0.26993969,95640.0,95624.0,0.12549]
[1740325735719,0.26993969,95640.0,95626.0,0.125488]
[1740325735916,0.125478,95635.0,95626.0,0.125488]
[1740325736113,0.10264569,95634.0,95626.0,0.125488]
[1740325736322,0.22812369,95634.0,95627.0,0.00319521]
[1740325736530,0.10277523,95634.0,95627.0,0.12868221]
[1740325736829,0.22825323,95634.0,95628.0,0.00319521]
[1740325737254,0.22825323,95634.0,95626.0,0.125488]
[1740325737466,0.10277523,95634.0,95627.0,0.125487]
[1740325737655,0.10277523,95634.0,95627.0,0.12868221]
[1740325738099,0.125479,95633.0,95627.0,0.00319521]
[1740325738307,0.10264569,95632.0,95627.0,0.00319521]
[1740325738509,0.10264569,95632.0,95626.0,0.125488]
[1740325738715,0.10264569,95632.0,95628.0,0.00322922]
[1740325738943,0.22812769,95632.0,95624.0,0.12549]
[1740325739050,0.10264569,95632.0,95629.0,0.00322921]
[1740325739261,0.10264569,95632.0,95627.0,0.125487]
[1740325739462,0.10264569,95632.0,95626.0,0.125488]
[1740325739662,0.10264569,95632.0,95628.0,0.00322922]
[1740325739866,0.22812669,95632.0,95625.0,0.125489]
[1740325740075,0.22812669,95632.0,95629.0,0.00322921]
[1740325740279,0.10264569,95632.0,95624.0,0.002]
[1740325740479,0.00654484,95631.0,95624.0,0.002]
[1740325740687,0.10264569,95630.0,95625.0,0.00322924]
[1740325740898,0.10264569,95630.0,95627.0,0.125486]
[1740325741097,0.10264569,95630.0,95629.0,0.125484]
[1740325741619,0.10264569,95630.0,95629.0,0.12874701]
[1740325741999,0.00012954,95634.0,95633.0,0.125479]
[1740325742205,0.10277523,95634.0,95633.0,0.12999653]
[1740325742411,0.10277523,95634.0,95633.0,0.12874198]
[1740325746270,0.10277523,95634.0,95633.0,0.13174198]
[1740325746480,0.00012954,95634.0,95633.0,0.13174198]
[1740325746689,0.00012954,95634.0,95633.0,0.13374198]
[1740325749044,0.00012954,95634.0,95633.0,0.13499653]
[1740325749216,0.00012954,95634.0,95633.0,0.13374198]
[1740325749422,0.00012954,95634.0,95633.0,0.13499653]
[1740325750082,0.00012954,95634.0,95633.0,0.13374198]
[1740325750625,0.00012954,95634.0,95633.0,0.13499651]
[1740325750809,0.00012954,95634.0,95633.0,0.13499638]
[1740325751224,0.14652954,95655.0,95633.0,0.00951738]
[1740325751435,0.10264569,95654.0,95651.0,0.125456]
[1740325751843,0.10264569,95654.0,95652.0,0.00326284]
[1740325752045,0.10264569,95654.0,95652.0,0.12871684]
[1740325752297,0.10264569,95654.0,95648.0,0.167278]
[1740325752500,0.10264569,95654.0,95653.0,0.00325476]
[1740325752713,0.10264569,95654.0,95644.0,0.167285]
[1740325752872,0.10564569,95654.0,95648.0,0.167279]
[1740325753076,0.15,95653.0,95645.0,0.00325482]
[1740325753371,0.10264569,95652.0,95649.0,0.12871279]
[1740325753582,0.10264569,95652.0,95648.0,0.125459]
[1740325753777,0.10264569,95652.0,95638.0,0.167297]
[1740325753985,0.10264569,95652.0,95639.0,0.00325487]
[1740325754165,0.10264569,95652.0,95650.0,0.125457]
[1740325754620,0.10264569,95652.0,95651.0,0.00325478]
[1740325754867,0.10264569,95652.0,95648.0,0.125459]
[1740325755056,0.10264569,95652.0,95651.0,0.00325868]
[1740325755307,0.10464569,95652.0,95649.0,0.125458]
[1740325755563,0.10464569,95652.0,95651.0,0.00325868]
[1740325755784,0.10464569,95652.0,95645.0,0.167284]
[1740325756042,0.10264569,95652.0,95651.0,0.00325868]
[1740325756300,0.10264569,95652.0,95648.0,0.125459]
[1740325756531,0.23009969,95652.0,95651.0,0.00325868]
[1740325756794,0.125456,95651.0,95645.0,0.125463]
[1740325757010,0.125459,95649.0,95621.0,0.0762]
[1740325757211,0.10264569,95648.0,95646.0,0.00325872]
[1740325757436,0.10264569,95648.0,95642.0,0.125467]
[1740325757657,0.10264569,95648.0,95647.0,0.00325871]
[1740325757895,0.10264569,95648.0,95621.0,0.0762]
[1740325758111,0.10264569,95648.0,95647.0,0.00325871]
[1740325758346,0.22810569,95648.0,95643.0,0.125466]
[1740325758484,0.22810569,95648.0,95647.0,0.00325871]
[1740325758707,0.125463,95646.0,95640.0,0.167292]
[1740325758938,0.317276,95651.0,95633.0,0.125478]
[1740325758939,0.10264569,95645.0,95633.0,0.125478]
[1740325759148,0.125467,95642.0,95641.0,0.00325876]
[1740325759348,0.10264569,95642.0,95636.0,0.125474]
[1740325759548,0.10264569,95641.0,95636.0,0.125474]
[1740325759930,0.10264569,95641.0,95630.0,0.16731]
[1740325760136,0.22811469,95641.0,95636.0,0.125475]
[1740325760341,0.10264569,95641.0,95636.0,0.125475]
[1740325760951,0.167295,95640.0,95620.0,0.167328]
[1740325761180,0.167295,95640.0,95631.0,0.125482]
[1740325761181,0.125475,95637.0,95631.0,0.125482]
[1740325761355,0.10264569,95636.0,95620.0,0.167328]
[1740325761554,0.10264569,95636.0,95625.0,0.16732]
[1740325761754,0.10264569,95636.0,95627.0,0.1681663]
[1740325762074,0.10264569,95636.0,95632.0,0.125481]
[1740325762473,0.10264569,95636.0,95631.0,0.003]
[1740325762657,0.10264569,95636.0,95632.0,0.125481]
[1740325763216,0.22812169,95636.0,95630.0,0.125482]
[1740325763991,0.10264569,95636.0,95629.0,0.167313]
[1740325764211,0.22812069,95636.0,95632.0,0.002]
[1740325764409,0.00654436,95635.0,95632.0,0.12748]
[1740325764618,0.10264569,95634.0,95631.0,0.004]
[1740325764827,0.10264569,95634.0,95630.0,0.125482]
[1740325765264,0.22812369,95634.0,95629.0,0.129484]
[1740325765434,0.10264569,95634.0,95629.0,0.125484]
[1740325765612,0.00654436,95633.0,95627.0,0.0008503]
[1740325765813,0.10264569,95632.0,95631.0,0.004]
[1740325766028,0.10264569,95632.0,95630.0,0.127483]
[1740325766225,0.10264569,95632.0,95630.0,0.006]
[1740325766595,0.10264569,95632.0,95631.0,0.00326017]
[1740325767760,0.10264569,95632.0,95631.0,0.00826017]
[1740325768167,0.10264569,95632.0,95631.0,0.13374217]
[1740325769230,0.10264569,95632.0,95631.0,0.13674217]
[1740325772364,0.10918993,95632.0,95631.0,0.15789552]
[1740325773043,0.10918993,95632.0,95631.0,0.15874592]
[1740325774416,0.00654424,95632.0,95631.0,0.15874592]
[1740325774616,0.00654424,95632.0,95631.0,0.16000044]
[1740325774826,0.00654424,95632.0,95631.0,0.15874592]
[1740325775068,0.15,95651.0,95649.0,0.125458]
[1740325775248,0.25264569,95650.0,95649.0,0.125458]
[1740325775445,0.25264569,95650.0,95649.0,0.12871844]
[1740325775659,0.25264569,95650.0,95649.0,0.00326044]
[1740325775887,0.37810269,95650.0,95649.0,0.00326044]
[1740325776098,0.37810269,95650.0,95643.0,0.125466]
[1740325776306,0.37810269,95650.0,95649.0,0.00326044]
[1740325776521,0.125458,95649.0,95631.0,0.0058504]
[1740325776888,0.10264569,95648.0,95643.0,0.125466]
[1740325778741,0.10264569,95648.0,95642.0,0.125466]
[1740325778939,0.10264569,95648.0,95643.0,0.125466]
[1740325779435,0.125463,95646.0,95632.0,0.167308]
[1740325779581,0.22810969,95645.0,95633.0,0.167306]
[1740325779781,0.22810969,95645.0,95638.0,0.125471]
[1740325779990,0.22810969,95645.0,95639.0,0.125471]
[1740325780227,0.10264569,95645.0,95636.0,0.1673]
[1740325780623,0.10264569,95645.0,95631.0,0.0008504]
[1740325780825,0.10264569,95645.0,95633.0,0.125479]
[1740325781200,0.10264569,95645.0,95631.0,0.0008504]
[1740325781201,0.10264569,95645.0,95638.0,0.001]
[1740325781405,0.125471,95639.0,95638.0,0.001]
[1740325781644,0.10264569,95639.0,95638.0,0.001]
[1740325782404,0.22811669,95639.0,95632.0,0.12548]
[1740325782653,0.10264569,95638.0,95631.0,0.0008504]
[1740325782865,0.125474,95637.0,95636.0,0.001]
[1740325783079,0.22811969,95637.0,95636.0,0.001]
[1740325783256,0.10264569,95637.0,95636.0,0.00325845]
[1740325783460,0.10264569,95637.0,95632.0,0.125481]
[1740325783669,0.125474,95637.0,95636.0,0.00325845]
[1740325784072,0.01701519,95636.0,95632.0,0.001]
[1740325784623,0.10264569,95635.0,95632.0,0.001]
[1740325784820,0.10264569,95635.0,95631.0,0.0008504]
[1740325785020,0.11046899,95635.0,95631.0,0.0008504]
[1740325785227,0.11046899,95635.0,95631.0,0.1681594]
[1740325785435,0.11046899,95635.0,95632.0,0.125481]
[1740325785690,0.01701519,95634.0,95632.0,0.128481]
[1740325785891,0.01701519,95634.0,95631.0,0.0008504]
[1740325785892,0.10264569,95633.0,95631.0,0.0008504]
[1740325786318,0.10264569,95633.0,95632.0,0.125481]
[1740325786866,0.10264569,95633.0,95632.0,0.129481]
[1740325787098,0.10264569,95633.0,95632.0,0.125481]
[1740325787303,0.11046899,95633.0,95631.0,0.0028504]
[1740325787482,0.11701315,95633.0,95631.0,0.0078504]
[1740325787699,0.11701315,95633.0,95631.0,0.1333314]
[1740325788063,0.11701315,95633.0,95631.0,0.1313314]
[1740325788446,0.11701315,95633.0,95631.0,0.0088504]
[1740325788770,0.10264569,95633.0,95632.0,0.125481]
[1740325789410,0.11047215,95633.0,95631.0,0.1293324]
[1740325789580,0.11047215,95633.0,95632.0,0.130481]
[1740325789992,0.11701656,95633.0,95632.0,0.133481]
[1740325790642,0.1091901,95633.0,95632.0,0.133481]
[1740325791370,0.1091901,95633.0,95632.0,0.210381]
[1740325792102,0.10264569,95633.0,95632.0,0.210381]
[1740325792300,0.275458,95650.0,95644.0,0.125465]
[1740325792501,0.10264569,95649.0,95644.0,0.125465]
[1740325792921,0.10264569,95649.0,95645.0,0.00358986]
[1740325793478,0.10264569,95649.0,95648.0,0.12546]
[1740325794033,0.10264569,95649.0,95648.0,0.12904983]
[1740325797318,0.10264569,95649.0,95648.0,0.1395449]
[1740325797528,0.0017008,95655.0,95654.0,0.125452]
[1740325797792,0.10434649,95655.0,95654.0,0.125452]
[1740325797995,0.10434649,95655.0,95654.0,0.12902165]
[1740325798255,0.57894683,95655.0,95654.0,0.00356965]
[1740325798437,0.62854683,95655.0,95654.0,0.00356965]
[1740325798644,0.0777,95653.0,95631.0,0.0008504]
[1740325798849,0.12547,95640.0,95631.0,0.0008504]
[1740325799069,0.125479,95633.0,95631.0,0.0008504]
[1740325799354,0.22812469,95633.0,95631.0,0.0008504]
[1740325802232,0.22812469,95633.0,95632.0,0.0038499]
[1740325802639,0.10264569,95633.0,95632.0,0.0008499]
[1740325802766,0.10264569,95633.0,95632.0,0.0038499]
[1740325803203,0.22812469,95633.0,95632.0,0.0008499]
[1740325803359,0.10264569,95633.0,95632.0,0.0038499]
[1740325803775,0.22812469,95633.0,95632.0,0.0038499]
[1740325804383,0.10264569,95633.0,95632.0,0.0038499]
[1740325804645,0.10264569,95633.0,95632.0,0.00742581]
[1740325804898,0.22812469,95633.0,95632.0,0.00742581]
[1740325805130,0.10264569,95633.0,95632.0,0.00742581]
[1740325805405,0.10264569,95633.0,95632.0,0.0038499]
[1740325805659,0.10264569,95633.0,95632.0,0.00742581]
[1740325806115,0.10264569,95633.0,95632.0,0.0038499]
[1740325806354,0.10264569,95633.0,95632.0,0.00844233]
[1740325807270,0.10264569,95633.0,95632.0,0.00744233]
[1740325807505,0.10264569,95633.0,95632.0,0.00844233]
[1740325808006,0.10264569,95633.0,95632.0,0.0048499]
[1740325808246,0.20955518,95633.0,95632.0,0.00844173]
[1740325808745,0.20955518,95633.0,95632.0,0.0298198]
[1740325808984,0.20955518,95633.0,95632.0,0.13392273]
[1740325809243,0.20955518,95633.0,95632.0,0.00844173]
[1740325813358,0.20955518,95633.0,95632.0,0.02977826]
[1740325813598,0.20955518,95633.0,95632.0,0.00844173]
[1740325813803,0.20955518,95633.0,95632.0,0.13392273]
[1740325814009,0.20955518,95633.0,95632.0,0.00844173]
[1740325818087,0.20955518,95633.0,95632.0,0.15534095]
[1740325818880,0.20955518,95633.0,95632.0,0.02985995]
[1740325821430,0.20955518,95633.0,95632.0,0.02626812]
[1740325821544,0.20955518,95633.0,95632.0,0.02985798]
[1740325822459,0.20955518,95633.0,95632.0,0.02626812]
[1740325824373,0.20955518,95633.0,95632.0,0.02985798]
[1740325831666,0.33503418,95633.0,95632.0,0.02985798]
[1740325831778,0.20955518,95633.0,95632.0,0.02985798]
[1740325831981,0.20955518,95633.0,95632.0,0.02626812]
[1740325832203,0.20955518,95633.0,95632.0,0.02985547]
[1740325839914,0.20955518,95633.0,95632.0,0.15533647]
[1740325840342,0.20955518,95633.0,95632.0,0.02985547]
[1740325840754,0.20955518,95633.0,95632.0,0.15533647]
[1740325859616,0.10690949,95633.0,95632.0,0.15533647]
[1740325859824,0.10690949,95633.0,95632.0,0.20619114]
[1740325860033,0.10690949,95633.0,95632.0,0.20493647]
[1740325860598,0.10690949,95633.0,95632.0,0.20393647]
[1740325860809,0.10690949,95654.0,95653.0,0.125453]
[1740325861012,0.20955518,95654.0,95653.0,0.125453]
[1740325861423,0.20955518,95654.0,95653.0,0.12903114]
[1740325862473,0.10690949,95654.0,95653.0,0.12903114]
[1740325862891,0.10690949,95654.0,95653.0,0.17863114]
[1740325864437,0.0017008,95655.0,95654.0,0.125452]
[1740325864862,0.0017008,95655.0,95654.0,0.12901866]
[1740325867210,0.0017008,95655.0,95654.0,0.13201866]
[1740325867378,0.10434649,95655.0,95654.0,0.00656666]
[1740325867583,0.10434649,95655.0,95654.0,0.00356666]
[1740325867786,0.10434649,95655.0,95654.0,0.12901866]
[1740325867991,0.10434649,95655.0,95654.0,0.13301866]
[1740325869002,0.0017008,95655.0,95654.0,0.13427308]
[1740325869205,0.0017008,95655.0,95654.0,0.26297293]
[1740325869408,0.0017008,95655.0,95654.0,0.26171866]
[1740325869635,0.0017008,95655.0,95654.0,0.26271866]
[1740325869794,0.0017008,95655.0,95654.0,0.25871866]
[1740325869992,0.0017008,95655.0,95654.0,0.26371866]
[1740325870272,0.0017008,95655.0,95654.0,0.26271866]
[1740325870459,0.0017008,95655.0,95654.0,0.26671866]
[1740325872987,0.0017008,95655.0,95654.0,0.41671866]
[1740325873808,0.0017008,95655.0,95654.0,0.41271866]
[1740325874006,0.0017008,95655.0,95654.0,0.41871866]
[1740325875876,0.0017008,95655.0,95654.0,0.41371866]
[1740325876004,0.0017008,95655.0,95654.0,0.41971866]
[1740325876415,0.0017008,95655.0,95654.0,0.14101866]
[1740325877502,0.0017008,95655.0,95654.0,0.01556666]
[1740325877699,0.0017008,95655.0,95654.0,0.14101866]
[1740325879058,0.10434649,95655.0,95654.0,0.14101866]
[1740325879877,0.10434649,95655.0,95654.0,0.12901866]
[1740325880069,0.10434649,95655.0,95654.0,0.13401866]
[1740325880223,0.10434649,95655.0,95654.0,0.14001866]
[1740325880433,0.10434649,95655.0,95654.0,0.12901866]
[1740325880772,0.10434649,95655.0,95654.0,0.14001866]
[1740325883366,0.33670598,95655.0,95654.0,0.01456666]
[1740325883486,0.38410598,95655.0,95654.0,0.00356666]
[1740325883734,0.38410698,95655.0,95654.0,0.005]
[1740325883903,0.38410698,95655.0,95654.0,0.009]
[1740325884112,0.38410698,95655.0,95654.0,0.004]
[1740325884884,0.3906504,95655.0,95654.0,0.004]
[1740325885129,0.39844403,95655.0,95654.0,0.004]
[1740325885330,0.125452,95654.0,95653.0,0.02217716]
[1740325885527,0.125452,95654.0,95653.0,0.0008499]
[1740325885528,0.22809769,95654.0,95653.0,0.0008499]
[1740325886135,0.30899769,95654.0,95653.0,0.0008499]
[1740325886337,0.31679132,95654.0,95653.0,0.0008499]
[1740325886490,0.32333474,95654.0,95653.0,0.0008499]
[1740325887111,0.32333474,95654.0,95653.0,0.0038499]
[1740325888219,0.43024423,95654.0,95653.0,0.0038499]
[1740325889076,0.43024423,95654.0,95653.0,0.0008499]
[1740325889265,0.43024423,95654.0,95653.0,0.0018499]
[1740325889569,0.43024423,95654.0,95653.0,0.0008499]
[1740325890029,0.43124423,95654.0,95653.0,0.02227138]
[1740325890233,0.43024423,95654.0,95653.0,0.02227138]
[1740325894494,0.4224506,95654.0,95653.0,0.02227138]
[1740325896753,0.43024385,95654.0,95653.0,0.02227138]
[1740325900580,0.44071468,95654.0,95653.0,0.02227138]
[1740325901208,0.59071468,95654.0,95653.0,0.02227138]
[1740325901975,0.59071468,95654.0,95653.0,0.0008499]
[1740325902568,0.59171468,95654.0,95653.0,0.0008499]
[1740325903382,0.59071468,95654.0,95653.0,0.0008499]
[1740325905551,0.59371468,95654.0,95653.0,0.0008499]
[1740325905953,0.59171468,95654.0,95653.0,0.0008499]
[1740325906310,0.59371468,95654.0,95653.0,0.0008499]
[1740325909811,0.59171468,95654.0,95653.0,0.0008499]
[1740325910009,0.59371468,95654.0,95653.0,0.0008499]
[1740325911129,0.59271468,95654.0,95653.0,0.0008499]
[1740325911594,0.15,95653.0,95632.0,0.0008499]
[1740325911794,0.125479,95633.0,95632.0,0.0008499]
[1740325911984,0.33503418,95633.0,95632.0,0.0008499]
[1740325912957,0.34282743,95633.0,95632.0,0.0028499]
[1740325913164,0.57272743,95633.0,95632.0,0.0028499]
[1740325913382,0.58974168,95633.0,95632.0,0.0028499]
[1740325913557,0.60006096,95633.0,95632.0,0.0038499]
[1740325914817,0.60006096,95633.0,95632.0,0.0018499]
[1740325915021,0.58974168,95633.0,95632.0,0.0018499]
[1740325915221,0.59274168,95633.0,95632.0,0.0018499]
[1740325916026,0.59274168,95633.0,95632.0,0.0008499]
[1740325916443,0.51284168,95633.0,95632.0,0.0008499]
[1740325916841,0.51684168,95633.0,95632.0,0.0008499]
[1740325920746,0.39136268,95633.0,95632.0,0.0008499]
[1740325921083,0.39136268,95633.0,95632.0,0.13017023]
[1740325921513,0.39136268,95633.0,95632.0,0.00468923]
[1740325923327,0.24136268,95633.0,95632.0,0.13017023]
[1740325923583,0.24136268,95633.0,95632.0,0.00468923]
[1740325924551,0.36684168,95633.0,95632.0,0.00468923]
[1740325924952,0.36384168,95633.0,95632.0,0.0008499]
[1740325925188,0.35984168,95633.0,95632.0,0.02209004]
[1740325925317,0.36284168,95633.0,95632.0,0.02209004]
[1740325925517,0.36384168,95633.0,95632.0,0.02209004]
[1740325925930,0.36584168,95633.0,95632.0,0.02209004]
[1740325926128,0.36384168,95633.0,95632.0,0.02209004]
[1740325926526,0.36184168,95633.0,95632.0,0.02209004]
[1740325926818,0.36284168,95633.0,95632.0,0.02209004]
[1740325928245,0.36084168,95633.0,95632.0,0.02209004]
[1740325928638,0.36384168,95633.0,95632.0,0.02209004]
[1740325928866,0.36284168,95633.0,95632.0,0.02209004]
[1740325929106,0.35984168,95633.0,95632.0,0.02209004]
[1740325929343,0.36284168,95633.0,95632.0,0.02209004]
[1740325929566,0.51284168,95633.0,95632.0,0.02209004]
[1740325930699,0.702517,95633.0,95632.0,0.02209004]
[1740325930888,0.748817,95633.0,95632.0,0.02209004]
[1740325931294,0.64948253,95633.0,95632.0,0.02209004]
[1740325931502,0.65248253,95633.0,95632.0,0.02209004]
[1740325931708,0.65748253,95633.0,95632.0,0.02209004]
[1740325932117,0.65348253,95633.0,95632.0,0.02209004]
[1740325932568,0.66028153,95633.0,95632.0,0.02309004]
[1740325932737,0.67337517,95633.0,95632.0,0.02309004]
[1740325934313,0.66637517,95633.0,95632.0,0.02209004]
[1740325934519,0.67337517,95633.0,95632.0,0.02209004]
[1740325935146,0.66637517,95633.0,95632.0,0.02209004]
[1740325935502,0.66837517,95633.0,95632.0,0.02209004]
[1740325935911,0.66837517,95633.0,95632.0,0.02309004]
[1740325936049,0.66837517,95633.0,95632.0,0.02209004]
[1740325936450,0.67437517,95633.0,95632.0,0.02309004]
[1740325936862,0.67937517,95633.0,95632.0,0.02309004]
[1740325937255,0.66837517,95633.0,95632.0,0.02209004]
[1740325937467,0.66137517,95633.0,95632.0,0.02209004]
[1740325937814,0.66837517,95633.0,95632.0,0.02209004]
[1740325938260,0.66137517,95633.0,95632.0,0.02209004]
[1740325938455,0.66837517,95633.0,95632.0,0.02209004]
[1740325938662,0.67437517,95633.0,95632.0,0.02309004]
[1740325938887,0.66137517,95633.0,95632.0,0.02209004]
[1740325939045,0.66637517,95633.0,95632.0,0.02309004]
[1740325939255,0.67337517,95633.0,95632.0,0.02309004]
[1740325939469,0.67337517,95633.0,95632.0,0.02209004]
[1740325939470,0.66837517,95633.0,95632.0,0.02209004]
[1740325939623,0.66028153,95633.0,95632.0,0.02209004]
[1740325940106,0.53618153,95633.0,95632.0,0.02209004]
[1740325940521,0.52918153,95633.0,95632.0,0.02209004]
[1740325940736,0.53618153,95633.0,95632.0,0.02209004]
[1740325941355,0.52918153,95633.0,95632.0,0.02209004]
[1740325941556,0.53018153,95633.0,95632.0,0.02209004]
[1740325942053,0.53418153,95633.0,95632.0,0.02209004]
[1740325945794,0.52134088,95633.0,95632.0,0.02209004]
[1740325947256,0.51354763,95633.0,95632.0,0.02209004]
[1740325947679,0.5213551,95633.0,95632.0,0.02209004]
[1740325948290,0.53444811,95633.0,95632.0,0.02209004]
[1740325953220,0.5213551,95633.0,95632.0,0.02209004]
[1740325965789,0.51088427,95633.0,95632.0,0.02209004]
[1740325971092,0.15,95632.0,95631.0,0.0008504]
[1740325971424,0.48503618,95632.0,95631.0,0.0008504]
[1740325971754,0.4915796,95632.0,95631.0,0.0008504]
[1740325972604,0.4955796,95632.0,95631.0,0.0008504]
[1740325972941,0.50338707,95632.0,95631.0,0.0008504]
[1740325973353,0.50938707,95632.0,95631.0,0.0008504]
[1740325977135,0.38390607,95632.0,95630.0,0.0908504]
[1740325977332,0.37812769,95631.0,95630.0,0.0908504]
[1740325977545,0.48503718,95631.0,95630.0,0.0908504]
[1740325978465,0.49284465,95631.0,95630.0,0.0908504]
[1740325978600,0.49684465,95631.0,95630.0,0.0908504]
[1740325980951,0.50184465,95631.0,95630.0,0.0908504]
[1740325984350,0.50184465,95631.0,95630.0,0.11142229]
[1740325987226,0.49403718,95631.0,95630.0,0.11142229]
[1740325988265,0.21855518,95631.0,95630.0,0.11142229]
[1740325988602,0.21855518,95631.0,95630.0,0.11546814]
[1740325988810,0.21855518,95631.0,95630.0,0.24095114]
[1740325988953,0.21855518,95631.0,95630.0,0.31975114]
[1740325990302,0.21855518,95631.0,95630.0,0.36485114]
[1740325991219,0.004,95631.0,95630.0,0.36485114]
[1740325991470,0.007,95631.0,95630.0,0.36485114]
[1740325992122,0.004,95631.0,95630.0,0.36485114]
[1740325992473,0.004,95631.0,95630.0,0.36685114]
[1740325992679,0.0017002,95633.0,95631.0,0.1251]
[1740325992881,0.0017002,95633.0,95632.0,0.205481]
[1740325992996,0.0017002,95633.0,95632.0,0.20949642]
[1740325993609,0.10434589,95633.0,95632.0,0.20949642]
[1740325993809,0.10434589,95633.0,95632.0,0.08401542]